bitfinex-derivatives/quotes_SOLF0:USTF0_20240913
["timestamp","ask_amount","ask_price","bid_price","bid_amount"]
[1726244579713,3.6349,137.54,137.52,27.93]
[1726244580107,2.8043,137.62,137.52,27.93]
[1726244580307,3.6343,137.56,137.52,27.93]
[1726244580510,6.49164491,137.62,137.52,27.93]
[1726244580908,3.6341,137.57,137.52,31.5651]
[1726244581104,6.49164491,137.62,137.52,3.6351]
[1726244581303,6.49164491,137.62,137.52,27.93]
[1726244582102,3.6345,137.55,137.52,27.93]
[1726244582416,6.49164491,137.62,137.52,27.93]
[1726244583208,6.49164491,137.62,137.52,31.5652]
[1726244583513,6.49164491,137.62,137.52,27.93]
[1726244583906,3.6344,137.56,137.52,27.93]
[1726244584210,6.49164491,137.62,137.55,17.46]
[1726244584416,3.6341,137.57,137.55,17.46]
[1726244584706,23.95164491,137.62,137.53,17.46]
[1726244584906,3.6342,137.57,137.53,17.46]
[1726244585213,6.49164491,137.62,137.55,17.46]
[1726244585608,113.57445267,137.67,137.55,17.46]
[1726244585809,21.5417,137.66,137.57,17.46]
[1726244587112,3.6334,137.59,137.57,17.46]
[1726244587312,2.7172,137.66,137.57,17.46]
[1726244587923,17.46,137.65,137.57,17.46]
[1726244588112,3.6333,137.6,137.57,17.46]
[1726244588313,20.1772,137.66,137.57,17.46]
[1726244588511,23.83346183,137.66,137.57,17.46]
[1726244588821,23.83346183,137.66,137.59,17.46]
[1726244589315,3.6331,137.6,137.59,17.46]
[1726244589712,23.83346183,137.66,137.59,17.46]
[1726244590413,6.37346183,137.66,137.59,17.46]
[1726244590623,3.6331,137.61,137.59,17.46]
[1726244590825,6.37346183,137.66,137.59,17.46]
[1726244591012,17.46,137.64,137.57,17.46]
[1726244591220,3.6338,137.58,137.57,17.46]
[1726244591519,17.46,137.64,137.57,17.46]
[1726244592213,17.46,137.64,137.4,7.2764]
[1726244592415,17.46,137.64,137.55,17.46]
[1726244593639,3.6341,137.57,137.55,17.46]
[1726244594019,3.6342,137.56,137.55,17.46]
[1726244594330,28.20346183,137.66,137.54,17.46]
[1726244594331,3.71171478,137.59,137.54,17.46]
[1726244594527,17.46,137.61,137.54,17.46]
[1726244594721,2.746,137.6,137.52,17.46]
[1726244595221,3.6352,137.53,137.52,17.46]
[1726244595417,3.6352,137.53,137.47,3.6364]
[1726244595624,3.6005893,137.55,137.5,17.46]
[1726244595922,17.46,137.59,137.5,17.46]
[1726244596325,21.11623477,137.59,137.5,17.46]
[1726244596730,3.6354,137.52,137.5,17.46]
[1726244597529,3.3956,137.52,137.5,17.46]
[1726244597728,3.6355,137.51,137.5,17.46]
[1726244598123,17.46,137.57,137.48,17.46]
[1726244598422,3.6358,137.5,137.48,17.46]
[1726244598625,17.46,137.55,137.47,17.46]
[1726244598819,1.407,137.54,137.45,17.46]
[1726244599024,3.6368,137.46,137.45,17.46]
[1726244599424,3.6368,137.46,137.35,343.0]
[1726244599425,3.7094166,137.48,137.38,3.61046972]
[1726244599623,17.46,137.51,137.42,17.46]
[1726244599825,1.3632,137.5,137.42,17.46]
[1726244600025,3.6376,137.44,137.42,17.46]
[1726244600422,17.46,137.49,137.42,17.46]
[1726244600725,3.6376,137.43,137.42,17.46]
[1726244600916,2.629,137.48,137.4,17.46]
[1726244601524,3.6381,137.41,137.4,17.46]
[1726244601723,20.089,137.48,137.39,17.46]
[1726244602620,3.6384,137.4,137.39,17.46]
[1726244602826,3.67445063,137.43,137.37,17.46]
[1726244603131,3.6389,137.38,137.37,17.46]
[1726244603429,17.46,137.44,137.37,17.46]
[1726244603729,3.6387,137.39,137.37,17.46]
[1726244603917,21.0187027,137.44,137.37,17.46]
[1726244604118,3.5587027,137.44,137.36,27.96]
[1726244604426,27.96,137.47,137.36,27.96]
[1726244604927,2.629,137.48,137.38,27.96]
[1726244606033,3.6382,137.41,137.38,27.96]
[1726244606923,3.6473875,137.43,137.36,27.96]
[1726244607127,27.96,137.47,137.36,27.96]
[1726244607629,3.639,137.38,137.34,27.96]
[1726244607823,3.5811177,137.4,137.34,27.96]
[1726244608138,27.96,137.45,137.34,27.96]
[1726244609126,3.6396,137.36,137.32,27.96]
[1726244609334,3.58038946,137.38,137.32,27.96]
[1726244609627,4.0804,137.42,137.32,27.96]
[1726244610025,27.96,137.41,137.3,27.96]
[1726244612021,3.6404,137.33,137.3,27.96]
[1726244612229,27.96,137.41,137.3,27.96]
[1726244612532,27.96,137.41,137.3,31.601]
[1726244612736,27.96,137.41,137.3,27.96]
[1726244612927,3.6394,137.37,137.32,31.6005]
[1726244613229,4.0804,137.42,137.32,27.96]
[1726244613934,27.96,137.41,137.3,27.96]
[1726244614131,3.64,137.35,137.3,27.96]
[1726244614334,27.96,137.41,137.3,27.96]
[1726244615429,27.96,137.39,137.28,27.96]
[1726244616040,27.96,137.37,137.26,27.96]
[1726244616337,3.6413,137.3,137.26,27.96]
[1726244616637,3.66129782,137.32,137.26,27.96]
[1726244616832,3.6415,137.29,137.26,27.96]
[1726244617136,3.57096736,137.31,137.26,27.96]
[1726244617327,1.3637,137.35,137.26,27.96]
[1726244617530,3.6413,137.3,137.26,27.96]
[1726244618334,4.93696479,137.35,137.26,27.96]
[1726244618933,3.6414,137.29,137.26,27.96]
[1726244619336,3.6411,137.3,137.26,27.96]
[1726244619638,3.6411,137.3,137.25,3.6422]
[1726244619832,27.96,137.3,137.2,27.96]
[1726244620035,3.6428,137.24,137.2,27.96]
[1726244620634,2.7168,137.29,137.2,27.96]
[1726244620836,3.66906773,137.28,137.2,27.96]
[1726244621839,3.6425,137.25,137.2,31.6035]
[1726244622242,3.66906773,137.28,137.2,31.6035]
[1726244622638,3.66906773,137.28,137.2,27.96]
[1726244622936,3.643,137.23,137.2,27.96]
[1726244623344,3.643,137.23,137.18,31.6041]
[1726244623642,3.6672454,137.26,137.15,31.6048]
[1726244623840,1.372,137.28,137.17,27.96]
[1726244624041,5.03394793,137.28,137.19,27.96]
[1726244624342,5.03394793,137.28,137.19,31.6039]
[1726244624535,3.6428,137.24,137.19,31.6039]
[1726244624731,27.96,137.27,137.17,31.6045]
[1726244625039,27.96,137.27,137.17,27.96]
[1726244625535,27.96,137.27,137.15,27.96]
[1726244625743,3.6439,137.2,137.15,27.96]
[1726244625942,27.96,137.27,137.15,31.6048]
[1726244626144,27.96,137.27,137.15,27.96]
[1726244626331,27.96,137.27,137.16,3.6446]
[1726244626838,3.6436,137.21,137.16,3.6446]
[1726244627245,3.6437,137.2,137.16,3.6446]
[1726244627442,27.96,137.27,137.15,27.96]
[1726244627640,27.96,137.25,137.15,27.96]
[1726244627839,27.96,137.27,137.15,27.96]
[1726244628037,27.96,137.27,137.17,3.6445]
[1726244628347,5.03394793,137.28,137.19,27.96]
[1726244628842,3.6429,137.24,137.19,31.6039]
[1726244629845,5.03394793,137.28,137.2,3.6437]
[1726244630047,5.03394793,137.28,137.19,27.96]
[1726244630244,3.6432,137.22,137.19,27.96]
[1726244631247,3.643,137.23,137.19,31.6039]
[1726244631544,5.03394793,137.28,137.19,27.96]
[1726244631844,3.6431,137.23,137.19,31.6039]
[1726244632148,5.03394793,137.28,137.19,27.96]
[1726244632447,5.03394793,137.28,137.19,31.6039]
[1726244632936,3.6431,137.23,137.19,31.6039]
[1726244633440,5.03394793,137.28,137.19,31.6039]
[1726244633640,5.03394793,137.28,137.19,27.96]
[1726244634145,5.03394793,137.28,137.2,3.6436]
[1726244634939,3.6429,137.24,137.2,3.6436]
[1726244635946,3.643,137.23,137.19,31.6039]
[1726244637449,5.03394793,137.28,137.17,27.96]
[1726244637849,3.6434,137.22,137.17,27.96]
[1726244638245,5.03394793,137.28,137.17,27.96]
[1726244638442,5.03394793,137.28,137.18,3.6441]
[1726244638845,5.03394793,137.28,137.17,31.6044]
[1726244638846,3.6437,137.21,137.17,31.6044]
[1726244639046,27.96,137.27,137.17,31.6044]
[1726244639438,3.6439,137.2,137.17,31.6044]
[1726244639845,27.96,137.25,137.15,31.605]
[1726244640143,27.96,137.27,137.15,27.96]
[1726244640344,27.96,137.25,137.15,27.96]
[1726244640549,27.96,137.25,137.12,31.62340786]
[1726244641240,35.2439,137.27,137.12,31.62340786]
[1726244641442,35.2439,137.27,137.16,27.96]
[1726244642253,27.96,137.27,137.16,27.96]
[1726244642460,5.03394793,137.28,137.12,31.62340786]
[1726244642461,5.03394793,137.28,137.18,27.96]
[1726244643143,5.03394793,137.28,137.19,3.6439]
[1726244643448,5.03394793,137.28,137.2,27.96]
[1726244643753,3.6427,137.24,137.2,27.96]
[1726244643954,5.03394793,137.28,137.2,27.96]
[1726244645056,3.6428,137.24,137.2,27.96]
[1726244645748,3.6431,137.23,137.18,3.644]
[1726244645953,5.03394793,137.28,137.17,27.96]
[1726244646455,3.6434,137.22,137.17,31.6043]
[1726244646653,5.03394793,137.28,137.17,27.96]
[1726244647051,3.6438,137.2,137.15,27.96]
[1726244647250,27.96,137.24,137.13,27.96]
[1726244647462,3.6444,137.18,137.14,3.6451]
[1726244648754,3.645,137.16,137.13,27.96]
[1726244649055,27.96,137.22,137.12,3.6458]
[1726244649359,29.371,137.22,137.11,31.606]
[1726244649550,29.371,137.22,137.11,27.96]
[1726244649752,3.6454,137.14,137.11,27.96]
[1726244649950,3.73265474,137.18,137.09,27.96]
[1726244650256,3.6456,137.13,137.09,31.6065]
[1726244650455,3.5816562,137.17,137.09,27.96]
[1726244650647,27.96,137.2,137.09,27.96]
[1726244650849,3.6454,137.14,137.09,27.96]
[1726244651256,3.645,137.16,137.12,3.6458]
[1726244651758,3.60208113,137.2,137.12,3.6458]
[1726244652053,3.645,137.16,137.13,3.6455]
[1726244652259,3.71879498,137.2,137.11,31.59198905]
[1726244652451,3.71879498,137.2,137.13,27.96]
[1726244652657,3.71879498,137.2,137.14,3.6452]
[1726244652854,0.7709,137.21,137.14,3.6452]
[1726244653056,3.6446,137.17,137.14,3.6452]
[1726244653256,0.7709,137.21,137.13,27.96]
[1726244653452,0.7709,137.21,137.15,27.96]
[1726244653760,0.7709,137.21,137.15,31.6049]
[1726244653956,0.7709,137.21,137.15,27.96]
[1726244654352,3.6439,137.2,137.15,27.96]
[1726244654658,0.7709,137.21,137.15,27.96]
[1726244655263,3.6442,137.19,137.15,27.96]
[1726244655656,3.6442,137.19,137.16,3.6446]
[1726244655856,3.6442,137.19,137.15,27.96]
[1726244655857,3.6441,137.19,137.15,27.96]
[1726244656058,0.7709,137.21,137.15,27.96]
[1726244656267,0.7709,137.21,137.15,31.605]
[1726244656565,3.6444,137.18,137.15,27.96]
[1726244656764,0.7709,137.21,137.15,27.96]
[1726244657056,3.6443,137.18,137.15,27.96]
[1726244657253,0.7709,137.21,137.15,27.96]
[1726244658050,0.7709,137.21,137.18,17.5]
[1726244658650,0.7709,137.21,137.2,17.5]
[1726244659054,4.4144,137.21,137.2,17.5]
[1726244659359,0.7709,137.21,137.2,17.5]
[1726244659863,4.4145,137.21,137.18,17.5]
[1726244660062,0.7709,137.21,137.18,17.5]
[1726244660356,0.7709,137.21,137.13,21.17047964]
[1726244660357,3.6439,137.2,137.17,3.6444]
[1726244660550,0.7709,137.21,137.16,17.5]
[1726244661254,17.5,137.25,137.16,17.5]
[1726244661454,17.5,137.25,137.16,21.1446]
[1726244661662,17.5,137.25,137.16,17.5]
[1726244661861,3.644,137.2,137.16,21.1446]
[1726244662161,17.5,137.25,137.16,21.1446]
[1726244662757,17.5,137.25,137.17,3.6443]
[1726244662950,21.6221,137.27,137.18,17.5]
[1726244663357,21.6221,137.27,137.18,21.1441]
[1726244663656,3.6431,137.23,137.18,17.5]
[1726244664164,21.6221,137.27,137.19,3.644]
[1726244665663,3.6431,137.23,137.19,3.644]
[1726244665869,21.6221,137.27,137.18,17.5]
[1726244666165,3.6437,137.2,137.16,17.5]
[1726244666565,3.6437,137.2,137.16,21.1445]
[1726244666767,17.5,137.25,137.16,17.5]
[1726244666977,21.6221,137.27,137.2,17.5]
[1726244668163,4.1221,137.27,137.2,21.1437]
[1726244668362,3.6429,137.24,137.2,21.1437]
[1726244669759,3.6429,137.23,137.2,21.1437]
[1726244670561,3.6432,137.22,137.2,21.1437]
[1726244671668,3.6431,137.23,137.2,21.1437]
[1726244672162,3.6424,137.26,137.23,3.6427]
[1726244672465,17.5,137.32,137.24,17.5]
[1726244672665,2.7697,137.33,137.25,21.1422]
[1726244672858,2.7697,137.33,137.27,17.5]
[1726244673062,2.7697,137.33,137.27,21.1418]
[1726244673267,2.7697,137.33,137.27,17.5]
[1726244673773,3.6413,137.3,137.27,17.5]
[1726244674667,2.7697,137.33,137.25,17.5]
[1726244675067,3.6415,137.29,137.25,17.5]
[1726244675266,2.7697,137.33,137.27,17.5]
[1726244675878,1.4131,137.33,137.29,17.5]
[1726244676566,3.6408,137.32,137.29,17.5]
[1726244676974,5.0535,137.33,137.29,21.1413]
[1726244677674,3.6406,137.32,137.29,17.5]
[1726244678274,3.6406,137.32,137.29,21.1413]
[1726244678572,3.6406,137.32,137.29,17.5]
[1726244679066,3.6409,137.31,137.29,17.5]
[1726244679371,5.03506522,137.36,137.29,21.1413]
[1726244679763,5.03506522,137.36,137.29,17.5]
[1726244680167,22.53506522,137.36,137.29,17.5]
[1726244680871,5.03506522,137.36,137.29,17.5]
[1726244681363,3.6405,137.33,137.29,21.1412]
[1726244681967,3.6401,137.34,137.31,17.5]
[1726244682269,1.4464,137.36,137.33,17.5]
[1726244682570,3.6399,137.35,137.33,17.5]
[1726244683175,3.6395,137.36,137.33,17.5]
[1726244684476,3.64,137.34,137.3,3.641]
[1726244684671,3.64,137.34,137.31,17.5]
[1726244685379,21.13196072,137.4,137.31,17.5]
[1726244685568,21.13196072,137.4,137.33,17.5]
[1726244685773,3.63196072,137.4,137.33,17.5]
[1726244686170,1.4398,137.41,137.35,17.5]
[1726244686370,3.6394,137.37,137.35,17.5]
[1726244686571,1.4398,137.41,137.35,17.5]
[1726244687077,3.61758953,137.4,137.35,17.5]
[1726244687377,3.6396,137.36,137.33,17.5]
[1726244688278,3.61758953,137.4,137.33,17.5]
[1726244688477,18.9398,137.41,137.33,17.5]
[1726244688673,18.9398,137.41,137.31,17.5]
[1726244688871,3.6399,137.35,137.31,21.1407]
[1726244689271,22.53818712,137.41,137.31,21.1407]
[1726244690374,3.6399,137.35,137.31,21.1407]
[1726244691281,3.6401,137.34,137.31,21.1407]
[1726244691582,17.5,137.39,137.31,17.5]
[1726244691777,1.3315,137.38,137.31,17.5]
[1726244692685,3.6403,137.33,137.31,17.5]
[1726244693182,3.6401,137.34,137.31,21.1407]
[1726244693487,3.6401,137.34,137.33,17.5]
[1726244694388,1.3315,137.38,137.33,17.5]
[1726244695487,3.6399,137.35,137.33,17.5]
[1726244696177,3.64,137.34,137.33,17.5]
[1726244696789,3.6398,137.35,137.33,17.5]
[1726244697382,3.6396,137.36,137.34,17.5]
[1726244698087,3.6396,137.36,137.34,21.14]
[1726244698288,3.6397,137.35,137.34,17.5]
[1726244699400,3.64,137.34,137.33,17.5]
[1726244699791,0.7709,137.4,137.33,17.5]
[1726244700097,3.6395,137.36,137.35,17.5]
[1726244700300,0.7709,137.4,137.33,17.5]
[1726244700602,18.2709,137.4,137.3,17.5]
[1726244700994,18.2709,137.4,137.31,3.6407]
[1726244701194,18.2709,137.4,137.33,17.5]
[1726244702298,3.6398,137.35,137.33,17.5]
[1726244702802,3.6396,137.36,137.33,17.5]
[1726244703705,3.6396,137.36,137.34,17.5]
[1726244703907,3.6397,137.35,137.34,17.5]
[1726244705006,17.5,137.39,137.31,17.5]
[1726244705301,1.4112,137.38,137.31,17.5]
[1726244705896,3.6405,137.32,137.31,17.5]
[1726244706207,1.4112,137.38,137.31,17.5]
[1726244706501,3.6404,137.33,137.31,17.5]
[1726244708210,3.6405,137.32,137.31,17.5]
[1726244708694,1.4112,137.38,137.16,29.109]
[1726244708695,3.67450684,137.34,137.16,29.109]
[1726244708895,17.5,137.35,137.26,21.142]
[1726244709094,2.6562,137.33,137.26,17.5]
[1726244709300,5.14739197,137.32,137.24,17.5]
[1726244709495,5.14739197,137.32,137.24,21.1425]
[1726244709896,5.14739197,137.32,137.26,17.5]
[1726244710703,3.6415,137.29,137.26,17.5]
[1726244711107,1.4361,137.32,137.26,17.5]
[1726244711307,2.6562,137.33,137.28,17.5]
[1726244711308,6.26282079,137.33,137.28,17.5]
[1726244711498,2.6562,137.33,137.28,17.5]
[1726244711702,2.6562,137.33,137.28,21.1416]
[1726244712011,3.6411,137.3,137.28,17.5]
[1726244716116,2.6562,137.33,137.28,17.5]
[1726244716417,2.6562,137.33,137.3,17.5]
[1726244716805,2.6562,137.33,137.29,17.5]
[1726244717313,3.6415,137.29,137.27,17.5]
[1726244717508,2.6562,137.33,137.27,17.5]
[1726244718512,3.6413,137.3,137.27,17.5]
[1726244718810,2.6562,137.33,137.25,17.5]
[1726244719011,2.6562,137.33,137.27,17.5]
[1726244719317,3.6412,137.3,137.27,21.1419]
[1726244719701,3.6409,137.31,137.29,17.5]
[1726244719901,1.3212,137.37,137.3,17.5]
[1726244720312,1.3212,137.37,137.33,17.5]
[1726244721308,3.6399,137.35,137.33,17.5]
[1726244722211,3.64,137.34,137.31,21.1407]
[1726244723019,3.6398,137.35,137.33,17.5]
[1726244723708,3.6396,137.36,137.33,21.1401]
[1726244724511,3.6398,137.35,137.33,17.5]
[1726244725814,3.64,137.34,137.33,17.5]
[1726244726517,3.6399,137.35,137.33,17.5]
[1726244728821,2.8335,137.38,137.33,17.5]
[1726244728822,3.64,137.34,137.33,17.5]
[1726244730116,2.8335,137.38,137.31,17.5]
[1726244730317,20.3335,137.38,137.21,233.2869]
[1726244730620,3.6415,137.29,137.25,17.5]
[1726244730813,3.6415,137.29,137.26,3.642]
[1726244731118,17.5,137.34,137.26,17.5]
[1726244731324,3.6413,137.3,137.26,17.5]
[1726244731512,17.5,137.34,137.26,21.142]
[1726244732324,3.6415,137.29,137.26,21.142]
[1726244733725,3.6417,137.28,137.25,3.6423]
[1726244733921,21.1307671,137.31,137.23,17.5]
[1726244734116,3.6423,137.26,137.23,17.5]
[1726244734521,3.68505009,137.29,137.23,17.5]
[1726244734719,1.4354,137.3,137.23,17.5]
[1726244735020,17.5,137.29,137.21,21.1434]
[1726244735215,3.5976144,137.28,137.21,21.1434]
[1726244735629,3.6429,137.23,137.15,226.0]
[1726244735822,3.69124345,137.28,137.2,17.5]
[1726244736323,3.6425,137.25,137.22,3.6432]
[1726244736523,3.6425,137.25,137.22,21.1432]
[1726244737123,1.4354,137.3,137.24,17.5]
[1726244737326,1.4354,137.3,137.26,17.5]
[1726244737626,2.7248,137.32,137.26,17.5]
[1726244738223,3.6412,137.3,137.26,21.1419]
[1726244738527,2.7248,137.32,137.26,17.5]
[1726244739324,3.6415,137.29,137.26,17.5]
[1726244739517,2.7248,137.32,137.26,17.5]
[1726244739720,21.18575588,137.31,137.23,17.5]
[1726244739927,18.8212,137.31,137.22,17.5]
[1726244740422,22.37504845,137.31,137.22,17.5]
[1726244741421,3.6425,137.25,137.22,17.5]
[1726244741626,17.5,137.29,137.2,17.5]
[1726244742025,4.87504845,137.31,137.18,17.5]
[1726244742026,17.5,137.27,137.18,17.5]
[1726244742225,4.87504845,137.31,137.17,17.5]
[1726244742226,20.3359,137.26,137.17,17.5]
[1726244742427,3.6434,137.22,137.18,3.6441]
[1726244742729,20.3359,137.26,137.17,17.5]
[1726244742925,17.5,137.24,137.17,17.5]
[1726244743231,17.5,137.24,137.15,17.5]
[1726244743232,21.13838581,137.24,137.15,17.5]
[1726244744030,3.6438,137.2,137.16,3.6448]
[1726244744222,3.63838581,137.24,137.17,17.5]
[1726244744618,3.6434,137.22,137.17,21.1443]
[1726244744823,3.63838581,137.24,137.17,21.1443]
[1726244745628,3.6436,137.21,137.17,21.1443]
[1726244746328,3.6437,137.2,137.17,17.5]
[1726244746527,21.13838581,137.24,137.17,17.5]
[1726244747634,3.63838581,137.24,137.18,17.5]
[1726244747931,3.6434,137.22,137.18,17.5]
[1726244748231,3.63838581,137.24,137.18,17.5]
[1726244748431,3.63838581,137.24,137.13,17.5]
[1726244748432,1.329,137.25,137.16,17.5]
[1726244748731,17.5,137.22,137.15,3.645]
[1726244749028,21.19383518,137.22,137.15,3.645]
[1726244749229,3.69383518,137.22,137.16,17.5]
[1726244749529,3.6439,137.2,137.16,21.1446]
[1726244749730,3.68545004,137.22,137.16,21.1446]
[1726244749919,3.6439,137.2,137.16,21.1446]
[1726244750526,3.644,137.19,137.16,21.1446]
[1726244751025,3.56587069,137.22,137.17,3.6444]
[1726244751230,17.5,137.24,137.17,3.6444]
[1726244751434,3.6439,137.2,137.17,3.6444]
[1726244751823,3.6434,137.22,137.17,17.5]
[1726244752019,3.6434,137.22,137.19,17.5]
[1726244752421,3.6434,137.22,137.19,21.1438]
[1726244752625,3.643,137.23,137.19,17.5]
[1726244753041,3.643,137.23,137.2,3.6437]
[1726244754530,7.36001066,137.26,137.19,17.5]
[1726244754734,3.6714254,137.3,137.23,17.5]
[1726244755139,3.6416,137.28,137.24,3.6425]
[1726244755528,4.1811,137.31,137.27,17.5]
[1726244755732,3.6415,137.29,137.27,17.5]
[1726244755936,4.1811,137.31,137.27,17.5]
[1726244756135,18.9057,137.36,137.28,17.5]
[1726244756334,20.3082,137.36,137.28,21.1414]
[1726244756634,2.8082,137.36,137.3,17.5]
[1726244756830,3.6398,137.35,137.32,17.5]
[1726244758237,3.6398,137.35,137.29,27.98]
[1726244758635,3.64,137.34,137.3,3.641]
[1726244758832,2.8082,137.36,137.29,27.98]
[1726244759739,3.64,137.34,137.29,31.6211]
[1726244759940,2.8082,137.36,137.29,31.6211]
[1726244760331,2.8082,137.36,137.29,27.98]
[1726244760537,2.8082,137.36,137.28,3.6416]
[1726244760938,3.6407,137.32,137.28,3.6416]
[1726244762736,3.6407,137.32,137.29,3.6413]
[1726244762937,3.6407,137.32,137.27,31.61881459]
[1726244763134,3.6404,137.33,137.27,31.61881459]
[1726244763340,1.4025,137.36,137.29,27.98]
[1726244763851,1.4025,137.36,137.29,31.6213]
[1726244764443,1.4025,137.36,137.29,35.30544462]
[1726244764640,3.6404,137.33,137.3,3.641]
[1726244765243,3.6406,137.32,137.29,31.66414462]
[1726244765444,1.4025,137.36,137.29,27.98]
[1726244765641,1.4025,137.36,137.27,31.60841806]
[1726244765842,1.4025,137.36,137.27,27.98]
[1726244766042,1.3245,137.35,137.27,27.98]
[1726244766346,1.3245,137.35,137.25,31.67288604]
[1726244766551,3.6416,137.28,137.25,31.6222]
[1726244766942,3.6416,137.28,137.25,27.98]
[1726244767138,3.6416,137.28,137.23,31.53561292]
[1726244767343,3.5789308,137.31,137.24,3.6426]
[1726244767646,3.56435712,137.31,137.23,31.57386882]
[1726244767843,1.3757,137.33,137.23,31.57386882]
[1726244768255,3.6411,137.3,137.25,3.6421]
[1726244768748,3.71701639,137.31,137.25,3.6421]
[1726244768938,1.3757,137.33,137.25,3.6421]
[1726244769141,1.3757,137.33,137.25,27.98]
[1726244769950,1.3757,137.33,137.27,27.98]
[1726244770151,3.6405,137.32,137.28,3.6414]
[1726244770350,1.3757,137.33,137.27,27.98]
[1726244770649,3.6409,137.31,137.27,31.6216]
[1726244770949,1.3757,137.33,137.27,27.98]
[1726244771351,3.6408,137.32,137.28,3.6414]
[1726244771553,1.3757,137.33,137.28,3.6414]
[1726244771947,3.641,137.31,137.27,31.6217]
[1726244772343,1.3757,137.33,137.27,31.6217]
[1726244772552,3.641,137.31,137.27,31.6217]
[1726244772746,3.641,137.31,137.28,3.6416]
[1726244774454,3.641,137.31,137.29,27.98]
[1726244775257,1.3757,137.33,137.29,27.98]
[1726244775654,1.3757,137.33,137.28,3.6414]
[1726244775854,1.3757,137.33,137.25,27.98]
[1726244776056,1.3757,137.33,137.23,27.98]
[1726244776255,1.3757,137.33,137.23,35.33223491]
[1726244776256,3.6422,137.26,137.23,35.33223491]
[1726244777145,3.6422,137.26,137.23,31.6227]
[1726244777344,3.69568928,137.31,137.2,27.98]
[1726244777555,27.98,137.32,137.2,27.98]
[1726244777751,1.3618,137.3,137.2,27.98]
[1726244778054,3.55905481,137.29,137.25,17.48]
[1726244778455,3.642,137.27,137.25,17.48]
[1726244779360,3.6421,137.26,137.25,17.48]
[1726244779660,3.6421,137.26,137.23,17.48]
[1726244780060,3.55905481,137.29,137.23,17.48]
[1726244780260,1.3618,137.3,137.23,17.48]
[1726244780452,18.9145,137.29,137.21,17.48]
[1726244780947,3.6428,137.24,137.21,17.48]
[1726244781350,3.67154486,137.28,137.21,17.48]
[1726244781560,3.67154486,137.28,137.23,17.48]
[1726244782263,1.4345,137.29,137.23,21.1229]
[1726244782763,3.6423,137.26,137.23,21.1229]
[1726244782962,3.6423,137.26,137.24,21.1226]
[1726244783260,3.642,137.27,137.24,21.1226]
[1726244783461,1.3618,137.3,137.26,17.48]
[1726244783855,3.6418,137.28,137.26,17.48]
[1726244785458,3.6418,137.28,137.26,21.1221]
[1726244786053,3.6418,137.28,137.26,17.48]
[1726244787665,3.6419,137.27,137.26,17.48]
[1726244787857,1.3757,137.33,137.26,17.48]
[1726244788258,3.6415,137.29,137.26,21.122]
[1726244788460,1.3757,137.33,137.28,17.48]